[Event "57th Biel Festival ATO 2024"]
[Site "Biel"]
[Date "2024.07.19"]
[Round "4.3"]
[White "Noh, Jinwoo"]
[Black "Oestmann, Lukas"]
[Result "1/2-1/2"]
[ECO "B42"]
[WhiteElo "1824"]
[BlackElo "1926"]
[Annotator "RC"]
[PlyCount "193"]
[EventDate "2024.07.03"]
[EventType "swiss"]
[EventCountry "SUI"]
[SourceTitle "playchess.com"]
[Source "ChessBase"]
[SourceQuality "1"]
[TimeControl "40/5400+30:1800+30"]

1. e4 {[%emt 0:00:23]} c5 {[%emt 0:00:04]} 2. Nf3 {[%emt 0:00:05]} e6 {[%emt 0:00:03]} 3. d4 {[%emt 0:00:11]} cxd4 {[%emt 0:00:04]} 4. Nxd4 {[%emt 0:00:07]} a6 {[%emt 0:00:02]} 5. Bd3 {[%emt 0:01:14]} Qc7 {[%emt 0:00:06]} 6. Qe2 {[%emt 0:00:27]} Nf6 {[%emt 0:07:45]} 7. O-O {[%emt 0:02:29]} h5 {[%emt 0:00:14]} 8. h3 {[%emt 0:04:46]} Bc5 {[%emt 0:03:17]} 9. Be3 {[%emt 0:05:00]} b6 {[%emt 0:03:59]} 10. a3 {[%emt 0:06:54]} Bb7 {[%emt 0:06:25]} 11. b4 {[%emt 0:00:49]} Be7 {[%emt 0:02:06]} 12. Nd2 {[%emt 0:01:10]} d5 {[%emt 0:02:53]} 13. f3 {[%emt 0:08:09]} Nbd7 {[%emt 0:11:30]} 14. Rac1 {[%emt 0:14:14]} Qg3 {[%emt 0:05:50]} 15. Bf2 {[%emt 0:03:05]} Qe5 {[%emt 0:01:07]} 16. exd5 {[%emt 0:01:59]} Qxe2 {[%emt 0:01:43]} 17. Nxe2 {[%emt 0:00:30]} Bxd5 {[%emt 0:01:10]} 18. Nf4 {[%emt 0:11:28]} a5 {[%emt 0:03:55]} 19. c4 {[%emt 0:00:26]} Bc6 {[%emt 0:01:41]} 20. c5 {[%emt 0:06:08]} bxc5 {[%emt 0:01:01]} 21. b5 {[%emt 0:00:06]} Bd5 {[%emt 0:01:36]} 22. Bc4 {[%emt 0:01:25]} O-O {[%emt 0:09:38]} 23. Ne4 {[%emt 0:02:19]} Bxe4 {[%emt 0:03:30]} 24. fxe4 {[%emt 0:00:15]} g5 {[%emt 0:07:34]} 25. Nxe6 {[%emt 0:14:58]} fxe6 {[%emt 0:00:51]} 26. Bxe6+ {[%emt 0:00:04]} Kg7 {[%emt 0:01:29]} 27. e5 {[%emt 0:00:05]} Nxe5 {[%emt 0:00:27]} 28. Bxc5 {[%emt 0:00:06]} Bxc5+ {[%emt 0:01:55]} 29. Rxc5 {[%emt 0:00:04]} Ng6 {[%emt 0:06:49]} 30. Rxg5 {[%emt 0:02:32]} Kh6 {[%emt 0:01:51]} 31. Rgf5 {[%emt 0:01:12]} Ne4 {[%emt 0:00:42]} 32. Rxf8 {[%emt 0:00:34]} Rxf8 {[%emt 0:00:25]} 33. Rxf8 {[%emt 0:00:16]} Nxf8 {[%emt 0:00:04]} 34. Bc8 {[%emt 0:00:04]} Nc5 {[%emt 0:02:03]} 35. b6 {[%emt 0:00:21]} Kg5 {[%emt 0:00:28]} 36. g3 {[%emt 0:00:35]} Ng6 {[%emt 0:01:15]} 37. h4+ {[%emt 0:00:55]} Kf6 {[%emt 0:00:18]} 38. Kf2 {[%emt 0:00:27]} Ke5 {[%emt 0:01:23]} 39. Ke3 {[%emt 0:01:14]} Ne7 {[%emt 0:04:33]} 40. b7 {[%emt 0:00:25]} Nc6 {[%emt 0:03:19]} 41. g4 {[%emt 0:30:05]} hxg4 {[%emt 0:32:10]} 42. Bxg4 {[%emt 0:00:08]} Nxb7 {[%emt 0:00:48]} 43. Kd3 {[%emt 0:00:33]} Nd6 {[%emt 0:00:00]} 44. Kc3 {[%emt 0:00:00]} Kd5 {[%emt 0:00:00]} 45. Kb3 {[%emt 0:00:00]} Kc5 {[%emt 0:00:00]} 46. h5 {[%emt 0:00:00]} Nf7 {[%emt 0:00:00]} 47. Be6 {[%emt 0:00:00]} Nd4+ {[%emt 0:00:00]} 48. Ka4 {[%emt 0:00:00]} Nxe6 {[%emt 0:00:00]} 49. Kxa5 {[%emt 0:00:00]} Nf4 {[%emt 0:00:00]} 50. Ka4 {[%emt 0:00:00]} Nxh5 {[%emt 0:00:00]} 51. Kb3 {[%emt 0:00:00]} Kb5 {[%emt 0:00:00]} 52. a4+ {[%emt 0:00:00]} Ka5 {[%emt 0:00:00]} 53. Kc4 {[%emt 0:00:00]} Nf6 {[%emt 0:00:00]} 54. Kc5 {[%emt 0:00:00]} Ne4+ {[%emt 0:00:00]} 55. Kd5 {[%emt 0:00:00]} Nc3+ {[%emt 0:00:00]} 56. Kc5 {[%emt 0:00:00]} Na2 {[%emt 0:00:00]} 57. Kd5 {[%emt 0:00:00]} Nb4+ {[%emt 0:00:00]} 58. Kc5 {[%emt 0:00:00]} Na6+ {[%emt 0:00:00]} 59. Kd5 {[%emt 0:00:00]} Nd8 {[%emt 0:00:00]} 60. Kc4 {[%emt 0:00:00]} Nb7 {[%emt 0:00:00]} 61. Kd5 {[%emt 0:00:00]} Kb6 {[%emt 0:00:00]} 62. a5+ {[%emt 0:00:00]} Kb5 {[%emt 0:00:00]} 63. Kd4 {[%emt 0:00:00]} Nd8 {[%emt 0:00:00]} 64. Kd5 {[%emt 0:00:00]} Nc6 {[%emt 0:00:00]} 65. Kd6 {[%emt 0:00:00]} Ncb4 {[%emt 0:00:00]} 66. Ke5 {[%emt 0:00:00]} Kc5 {[%emt 0:00:00]} 67. Ke4 {[%emt 0:00:00]} Nc6 {[%emt 0:00:10]} 68. Ke3 {[%emt 0:00:00]} Kd5 {[%emt 0:01:26]} 69. Kd3 {[%emt 0:00:00]} Na7 {[%emt 0:00:42]} 70. Ke3 {[%emt 0:00:00]} Nc6 {[%emt 0:01:06]} 71. Kd3 {[%emt 0:00:00]} Ne5+ {[%emt 0:00:07]} 72. Ke3 {[%emt 0:00:00]} Ng6 {[%emt 0:00:41]} 73. Kd3 {[%emt 0:00:00]} Nf4+ {[%emt 0:00:05]} 74. Ke3 {[%emt 0:00:00]} Ke5 {[%emt 0:00:02]} 75. Kd2 {[%emt 0:00:00]} Kd4 {[%emt 0:00:30]} 76. Kd1 {[%emt 0:00:00]} Kd3 {[%emt 0:00:20]} 77. Ke1 {[%emt 0:00:00]} Ke3 {[%emt 0:03:35]} 78. Kd1 {[%emt 0:00:00]} Nd5 {[%emt 0:02:45]} 79. Kc1 {[%emt 0:00:00]} Kd3 {[%emt 0:00:44]} 80. Kd1 {[%emt 0:00:00]} Nc3+ {[%emt 0:00:30]} 81. Kc1 {[%emt 0:00:00]} Na4 {[%emt 0:01:04]} 82. Kd1 {[%emt 0:00:00]} Nb2+ {[%emt 0:00:05]} 83. Kc1 {[%emt 0:00:00]} Kc3 {[%emt 0:00:05]} 84. Kb1 {[%emt 0:00:00]} Nd3 {[%emt 0:00:53]} 85. Ka2 {[%emt 0:00:00]} Kc2 {[%emt 0:01:44]} 86. Ka3 {[%emt 0:00:00]} Ndc5 {[%emt 0:00:29]} 87. Ka2 {[%emt 0:00:00]} Ne6 {[%emt 0:04:41]} 88. Ka3 {[%emt 0:00:00]} Nd4 {[%emt 0:00:14]} 89. Ka4 {[%emt 0:00:00]} Kc3 {[%emt 0:00:46]} 90. Ka3 {[%emt 0:00:00]} Nc5 {[%emt 0:02:54]} 91. a6 {[%emt 0:00:00]} Nb5+ {[%emt 0:00:03]} 92. Ka2 {[%emt 0:00:00]} Na7 {[%emt 0:01:47]} 93. Ka3 {[%emt 0:00:00]} Nd3 {[%emt 0:00:24]} 94. Ka4 {[%emt 0:00:00]} Kc4 {[%emt 0:00:37]} 95. Ka5 {[%emt 0:00:00]} Kc5 {[%emt 0:00:19]} 96. Ka4 {[%emt 0:00:00]} Kc4 {[%emt 0:00:53]} 97. Ka5 {[%emt 0:00:00]} 1/2-1/2

[Event "57th Biel Festival ATO 2024"]
[Site "Biel"]
[Date "2024.07.19"]
[Round "4.4"]
[White "Kuenzli, Simon"]
[Black "Yu, Tianxiang Carlos"]
[Result "1/2-1/2"]
[ECO "B52"]
[WhiteElo "1919"]
[BlackElo "1769"]
[Annotator "RC"]
[PlyCount "62"]
[EventDate "2024.07.03"]
[EventType "swiss"]
[EventCountry "SUI"]
[SourceTitle "playchess.com"]
[Source "ChessBase"]
[SourceQuality "1"]
[TimeControl "40/5400+30:1800+30"]

1. e4 {[%emt 0:00:15]} c5 {[%emt 0:08:55]} 2. Nf3 {[%emt 0:00:22]} d6 {[%emt 0:00:04]} 3. Bb5+ {[%emt 0:00:18]} Bd7 {[%emt 0:00:03]} 4. Bxd7+ {[%emt 0:00:06]} Qxd7 {[%emt 0:00:01]} 5. c4 {[%emt 0:00:23]} Nf6 {[%emt 0:00:04]} 6. Nc3 {[%emt 0:00:07]} Nc6 {[%emt 0:00:30]} 7. O-O {[%emt 0:00:31]} g6 {[%emt 0:00:00]} 8. d4 {[%emt 0:00:42]} cxd4 {[%emt 0:00:00]} 9. Nxd4 {[%emt 0:00:06]} Bg7 {[%emt 0:04:08]} 10. Nde2 {[%emt 0:02:38]} O-O {[%emt 0:00:31]} 11. f3 {[%emt 0:01:59]} a6 {[%emt 0:04:19]} 12. Be3 {[%emt 0:01:19]} Ne5 {[%emt 0:08:49]} 13. b3 {[%emt 0:03:56]} b5 {[%emt 0:02:03]} 14. Nd5 {[%emt 0:04:44]} Qb7 {[%emt 0:11:04]} 15. Nb6 {[%emt 0:08:05]} Rab8 {[%emt 0:02:26]} 16. Rc1 {[%emt 0:08:15]} bxc4 {[%emt 0:01:42]} 17. Nxc4 {[%emt 0:01:14]} Nxc4 {[%emt 0:00:11]} 18. Rxc4 {[%emt 0:00:45]} d5 {[%emt 0:02:05]} 19. exd5 {[%emt 0:01:51]} Nxd5 {[%emt 0:00:07]} 20. Bf2 {[%emt 0:01:30]} Rfd8 {[%emt 0:00:38]} 21. Qb1 {[%emt 0:01:10]} h5 {[%emt 0:03:10]} 22. Rfc1 {[%emt 0:05:51]} Rbc8 {[%emt 0:01:28]} 23. Qe4 {[%emt 0:03:28]} e6 {[%emt 0:08:24]} 24. Nf4 {[%emt 0:10:39]} Rxc4 {[%emt 0:17:51]} 25. Rxc4 {[%emt 0:08:37]} Qb8 {[%emt 0:01:42]} 26. g3 {[%emt 0:10:51]} Nxf4 {[%emt 0:03:19]} 27. Qxf4 {[%emt 0:00:54]} Qxf4 {[%emt 0:04:35]} 28. Rxf4 {[%emt 0:03:25]} Rd1+ {[%emt 0:00:06]} 29. Kg2 {[%emt 0:00:12]} Rd2 {[%emt 0:00:02]} 30. Ra4 {[%emt 0:00:36]} Bc3 {[%emt 0:02:55]} 31. h4 {[%emt 0:02:12]} a5 {[%emt 0:01:26]} 1/2-1/2

[Event "57th Biel Festival ATO 2024"]
[Site "Biel"]
[Date "2024.07.19"]
[Round "4.5"]
[White "Bracher, Juerg"]
[Black "Nasybullina, Alfia"]
[Result "0-1"]
[ECO "A60"]
[WhiteElo "1864"]
[BlackElo "1997"]
[Annotator "RC"]
[PlyCount "142"]
[EventDate "2024.07.03"]
[EventType "swiss"]
[EventCountry "SUI"]
[SourceTitle "playchess.com"]
[Source "ChessBase"]
[SourceQuality "1"]
[TimeControl "40/5400+30:1800+30"]

1. d4 {[%emt 0:00:05]} Nf6 {[%emt 0:03:10]} 2. c4 {[%emt 0:02:05]} c5 {[%emt 0:00:06]} 3. d5 {[%emt 0:00:38]} e6 {[%emt 0:00:07]} 4. Nc3 {[%emt 0:00:13]} exd5 {[%emt 0:00:07]} 5. cxd5 {[%emt 0:00:13]} d6 {[%emt 0:00:08]} 6. Bg5 {[%emt 0:00:30]} h6 {[%emt 0:02:21]} 7. Bh4 {[%emt 0:02:26]} g5 {[%emt 0:01:45]} 8. Bg3 {[%emt 0:00:02]} Nh5 {[%emt 0:03:05]} 9. e4 {[%emt 0:04:47]} Nxg3 {[%emt 0:01:38]} 10. Bb5+ {[%emt 0:01:48]} Nd7 {[%emt 0:00:35]} 11. hxg3 {[%emt 0:00:08]} a6 {[%emt 0:00:37]} 12. Be2 {[%emt 0:03:23]} b5 {[%emt 0:00:37]} 13. a3 {[%emt 0:03:35]} Bg7 {[%emt 0:01:02]} 14. Qc2 {[%emt 0:01:05]} Qe7 {[%emt 0:06:22]} 15. Nf3 {[%emt 0:03:13]} O-O {[%emt 0:03:09]} 16. O-O {[%emt 0:12:59]} Ne5 {[%emt 0:00:30]} 17. Nxe5 {[%emt 0:00:30]} Bxe5 {[%emt 0:00:27]} 18. g4 {[%emt 0:02:41]} Kg7 {[%emt 0:04:48]} 19. g3 {[%emt 0:01:34]} Rh8 {[%emt 0:01:15]} 20. Kg2 {[%emt 0:00:16]} Qf6 {[%emt 0:04:49]} 21. Rae1 {[%emt 0:03:00]} Rb8 {[%emt 0:01:20]} 22. Nd1 {[%emt 0:02:20]} b4 {[%emt 0:00:28]} 23. Qc1 {[%emt 0:07:55]} Qg6 {[%emt 0:05:05]} 24. Qe3 {[%emt 0:01:37]} Bd4 {[%emt 0:01:14]} 25. Qd3 {[%emt 0:00:18]} Re8 {[%emt 0:02:19]} 26. f3 {[%emt 0:01:25]} Rh8 {[%emt 0:03:12]} 27. Rh1 {[%emt 0:00:58]} h5 {[%emt 0:00:30]} 28. Rxh5 {[%emt 0:06:21]} Rxh5 {[%emt 0:00:39]} 29. gxh5 {[%emt 0:00:01]} Qxh5 {[%emt 0:00:21]} 30. Rh1 {[%emt 0:00:15]} Qg6 {[%emt 0:00:19]} 31. axb4 {[%emt 0:01:30]} Rxb4 {[%emt 0:00:55]} 32. b3 {[%emt 0:00:17]} f5 {[%emt 0:03:38]} 33. exf5 {[%emt 0:15:01]} Qxf5 {[%emt 0:00:10]} 34. Qxf5 {[%emt 0:00:31]} Bxf5 {[%emt 0:00:05]} 35. Bxa6 {[%emt 0:05:59]} Rxb3 {[%emt 0:00:11]} 36. Re1 {[%emt 0:02:43]} Ra3 {[%emt 0:01:27]} 37. Bc4 {[%emt 0:00:26]} Ra4 {[%emt 0:00:19]} 38. Bb5 {[%emt 0:01:53]} Ra1 {[%emt 0:01:48]} 39. g4 {[%emt 0:03:48]} Bg6 {[%emt 0:03:01]} 40. Kf1 {[%emt 0:04:25]} Bf7 {[%emt 0:01:25]} 41. Bc6 {[%emt 0:33:13]} Kf6 {[%emt 0:30:41]} 42. Ke2 {[%emt 0:03:08]} Ra2+ {[%emt 0:01:37]} 43. Kd3 {[%emt 0:01:16]} Bg6+ {[%emt 0:02:09]} 44. Kc4 {[%emt 0:00:38]} Ra3 {[%emt 0:04:55]} 45. Re6+ {[%emt 0:00:00]} Kg7 {[%emt 0:00:00]} 46. Kb5 {[%emt 0:00:00]} Bc2 {[%emt 0:00:00]} 47. Rxd6 {[%emt 0:00:00]} Rb3+ {[%emt 0:00:00]} 48. Ka6 {[%emt 0:00:00]} Bxd1 {[%emt 0:00:00]} 49. Rd7+ {[%emt 0:00:00]} Kg6 {[%emt 0:00:00]} 50. Rd6+ {[%emt 0:00:00]} Bf6 {[%emt 0:00:00]} 51. Be8+ {[%emt 0:00:00]} Kg7 {[%emt 0:00:00]} 52. Rd7+ {[%emt 0:00:00]} Kg8 {[%emt 0:00:00]} 53. d6 {[%emt 0:00:00]} Be2+ {[%emt 0:00:00]} 54. Ka7 {[%emt 0:00:00]} c4 {[%emt 0:00:00]} 55. Bf7+ {[%emt 0:00:00]} Kf8 {[%emt 0:00:00]} 56. Bd5 {[%emt 0:00:00]} Bd4+ {[%emt 0:00:00]} 57. Ka8 {[%emt 0:00:00]} Rxf3 {[%emt 0:00:00]} 58. Rd8+ {[%emt 0:00:00]} Kg7 {[%emt 0:00:00]} 59. Rd7+ {[%emt 0:02:59]} Kg6 {[%emt 0:00:00]} 60. Bxf3 {[%emt 0:00:16]} Bxf3+ {[%emt 0:00:00]} 61. Kb8 {[%emt 0:00:04]} Be5 {[%emt 0:00:00]} 62. Ka7 {[%emt 0:01:35]} Bxg4 {[%emt 0:00:00]} 63. Rc7 {[%emt 0:00:20]} Be6 {[%emt 0:00:00]} 64. Rc6 {[%emt 0:02:05]} Kf7 {[%emt 0:00:00]} 65. Rc7+ {[%emt 0:00:29]} Kf6 {[%emt 0:00:00]} 66. Rc6 {[%emt 0:00:08]} Kf5 {[%emt 0:00:12]} 67. Rc5 {[%emt 0:00:33]} c3 {[%emt 0:00:38]} 68. Kb7 {[%emt 0:00:48]} g4 {[%emt 0:00:51]} 69. Kc6 {[%emt 0:00:08]} g3 {[%emt 0:00:34]} 70. d7 {[%emt 0:00:14]} Bxd7+ {[%emt 0:00:06]} 71. Kxd7 {[%emt 0:00:46]} g2 {[%emt 0:00:12]} 0-1

[Event "57th Biel Festival ATO 2024"]
[Site "Biel"]
[Date "2024.07.19"]
[Round "4.6"]
[White "Papaux, Jeremie"]
[Black "Conrad, Vincent"]
[Result "1-0"]
[ECO "D46"]
[WhiteElo "1814"]
[BlackElo "1931"]
[Annotator "RC"]
[PlyCount "64"]
[EventDate "2024.07.03"]
[EventType "swiss"]
[EventCountry "SUI"]
[SourceTitle "playchess.com"]
[Source "ChessBase"]
[SourceQuality "1"]
[TimeControl "40/5400+30:1800+30"]

1. Nf3 {[%emt 0:00:05]} Nf6 {[%emt 0:00:11]} 2. c4 {[%emt 0:00:53]} e6 {[%emt 0:00:17]} 3. Nc3 {[%emt 0:00:07]} Bb4 {[%emt 0:00:36]} 4. Qc2 {[%emt 0:00:39]} d5 {[%emt 0:04:55]} 5. e3 {[%emt 0:02:11]} c6 {[%emt 0:06:20]} 6. d4 {[%emt 0:10:33]} Nbd7 {[%emt 0:02:44]} 7. Bd3 {[%emt 0:01:44]} O-O {[%emt 0:01:54]} 8. O-O {[%emt 0:03:48]} Bxc3 {[%emt 0:02:43]} 9. bxc3 {[%emt 0:01:34]} Re8 {[%emt 0:02:22]} 10. a4 {[%emt 0:07:12]} e5 {[%emt 0:03:18]} 11. Bf5 {[%emt 0:00:14]} e4 {[%emt 0:03:10]} 12. Bxd7 {[%emt 0:03:03]} Nxd7 {[%emt 0:00:12]} 13. Nd2 {[%emt 0:00:07]} Qg5 {[%emt 0:03:47]} 14. cxd5 {[%emt 0:01:39]} cxd5 {[%emt 0:00:21]} 15. c4 {[%emt 0:00:43]} Nf6 {[%emt 0:00:22]} 16. Nb1 {[%emt 0:06:38]} Bg4 {[%emt 0:17:46]} 17. Kh1 {[%emt 0:06:35]} Rac8 {[%emt 0:05:03]} 18. Nd2 {[%emt 0:05:35]} Qh5 {[%emt 0:05:08]} 19. Ba3 {[%emt 0:05:59]} Be2 {[%emt 0:01:06]} 20. Bd6 {[%emt 0:04:32]} Bxf1 {[%emt 0:01:08]} 21. Rxf1 {[%emt 0:00:32]} Qe2 {[%emt 0:02:37]} 22. c5 {[%emt 0:01:20]} Re6 {[%emt 0:04:51]} 23. Qb2 {[%emt 0:00:51]} Qa6 {[%emt 0:04:41]} 24. a5 {[%emt 0:02:38]} b6 {[%emt 0:03:28]} 25. axb6 {[%emt 0:02:01]} axb6 {[%emt 0:00:17]} 26. Ra1 {[%emt 0:01:34]} Qe2 {[%emt 0:02:53]} 27. h3 {[%emt 0:03:35]} b5 {[%emt 0:08:17]} 28. f3 {[%emt 0:08:19]} exf3 {[%emt 0:01:31]} 29. gxf3 {[%emt 0:00:25]} Rxe3 {[%emt 0:03:02]} 30. Bg3 {[%emt 0:01:24]} Qd3 {[%emt 0:01:50]} 31. Qa2 {[%emt 0:04:53]} Re2 {[%emt 0:02:53]} 32. Bf4 {[%emt 0:04:41]} Qf5 {[%emt 0:01:28]} 1-0

[Event "57th Biel Festival ATO 2024"]
[Site "Biel"]
[Date "2024.07.19"]
[Round "4.7"]
[White "Jud, Marc"]
[Black "Haas, Anthony"]
[Result "1/2-1/2"]
[ECO "D45"]
[WhiteElo "1925"]
[BlackElo "1824"]
[Annotator "RC"]
[PlyCount "106"]
[EventDate "2024.07.03"]
[EventType "swiss"]
[EventCountry "SUI"]
[SourceTitle "playchess.com"]
[Source "ChessBase"]
[SourceQuality "1"]
[TimeControl "40/5400+30:1800+30"]

1. d4 {[%emt 0:00:03]} d5 {[%emt 0:00:05]} 2. Nf3 {[%emt 0:00:16]} Nf6 {[%emt 0:00:14]} 3. e3 {[%emt 0:00:19]} e6 {[%emt 0:00:29]} 4. c4 {[%emt 0:00:24]} Be7 {[%emt 0:02:19]} 5. Nc3 {[%emt 0:00:26]} O-O {[%emt 0:00:31]} 6. cxd5 {[%emt 0:00:33]} exd5 {[%emt 0:00:06]} 7. h3 {[%emt 0:00:50]} Nbd7 {[%emt 0:01:47]} 8. Bd3 {[%emt 0:00:04]} c6 {[%emt 0:00:38]} 9. O-O {[%emt 0:02:16]} Re8 {[%emt 0:04:13]} 10. e4 {[%emt 0:02:32]} dxe4 {[%emt 0:01:36]} 11. Nxe4 {[%emt 0:00:06]} Nxe4 {[%emt 0:08:49]} 12. Bxe4 {[%emt 0:01:42]} Nf6 {[%emt 0:00:44]} 13. Bc2 {[%emt 0:01:51]} Be6 {[%emt 0:08:32]} 14. Ne5 {[%emt 0:02:34]} c5 {[%emt 0:09:00]} 15. Ba4 {[%emt 0:04:17]} Rf8 {[%emt 0:04:14]} 16. dxc5 {[%emt 0:09:06]} Qa5 {[%emt 0:06:47]} 17. Bb3 {[%emt 0:12:40]} Bxb3 {[%emt 0:12:12]} 18. Qxb3 {[%emt 0:01:11]} Bxc5 {[%emt 0:02:58]} 19. Nc4 {[%emt 0:06:18]} Qc7 {[%emt 0:01:07]} 20. Be3 {[%emt 0:02:07]} Bxe3 {[%emt 0:01:40]} 21. Nxe3 {[%emt 0:00:11]} Rac8 {[%emt 0:01:11]} 22. Rad1 {[%emt 0:07:56]} Rfd8 {[%emt 0:02:44]} 23. Qa3 {[%emt 0:02:04]} a6 {[%emt 0:05:25]} 24. Nf5 {[%emt 0:03:11]} Rxd1 {[%emt 0:01:27]} 25. Rxd1 {[%emt 0:00:23]} Rd8 {[%emt 0:03:55]} 26. Re1 {[%emt 0:03:28]} Re8 {[%emt 0:03:43]} 27. Rxe8+ {[%emt 0:04:19]} Nxe8 {[%emt 0:00:01]} 28. Qe3 {[%emt 0:00:48]} Qd7 {[%emt 0:02:24]} 29. g4 {[%emt 0:02:12]} h6 {[%emt 0:00:51]} 30. Kg2 {[%emt 0:01:22]} Nc7 {[%emt 0:02:53]} 31. Qe5 {[%emt 0:10:02]} Qd5+ {[%emt 0:02:39]} 32. Qxd5 {[%emt 0:00:30]} Nxd5 {[%emt 0:00:01]} 33. Kf3 {[%emt 0:03:57]} Nb4 {[%emt 0:02:41]} 34. a4 {[%emt 0:03:34]} Nd3 {[%emt 0:00:22]} 35. b3 {[%emt 0:00:16]} Nc5 {[%emt 0:00:20]} 36. Nd6 {[%emt 0:08:30]} b5 {[%emt 0:00:17]} 37. axb5 {[%emt 0:00:20]} axb5 {[%emt 0:00:01]} 38. b4 {[%emt 0:00:37]} Nd3 {[%emt 0:00:16]} 39. Nxb5 {[%emt 0:00:25]} Nxb4 {[%emt 0:00:04]} 40. Nd6 {[%emt 0:00:30]} Kf8 {[%emt 0:00:28]} 41. Nf5 {[%emt 0:30:21]} Nd3 {[%emt 0:34:18]} 42. Ke3 {[%emt 0:00:44]} Nc5 {[%emt 0:00:40]} 43. h4 {[%emt 0:00:47]} Ne6 {[%emt 0:00:36]} 44. Ke4 {[%emt 0:01:00]} Ke8 {[%emt 0:05:50]} 45. Ke5 {[%emt 0:02:04]} Kd7 {[%emt 0:00:00]} 46. f3 {[%emt 0:00:00]} f6+ {[%emt 0:00:00]} 47. Kd5 {[%emt 0:00:00]} h5 {[%emt 0:00:00]} 48. Nd4 {[%emt 0:00:00]} Nxd4 {[%emt 0:00:00]} 49. Kxd4 {[%emt 0:00:00]} hxg4 {[%emt 0:00:00]} 50. fxg4 {[%emt 0:00:00]} g6 {[%emt 0:00:00]} 51. Kd5 {[%emt 0:00:00]} Ke7 {[%emt 0:00:00]} 52. g5 {[%emt 0:00:00]} fxg5 {[%emt 0:00:00]} 53. hxg5 {[%emt 0:00:00]} Kd7 {[%emt 0:00:00]} 1/2-1/2

[Event "57th Biel Festival ATO 2024"]
[Site "Biel"]
[Date "2024.07.19"]
[Round "4.8"]
[White "Dreke, Frank"]
[Black "Meshach, Felix"]
[Result "0-1"]
[ECO "B33"]
[WhiteElo "1915"]
[BlackElo "1773"]
[Annotator "RC"]
[PlyCount "161"]
[EventDate "2024.07.03"]
[EventType "swiss"]
[EventCountry "SUI"]
[SourceTitle "playchess.com"]
[Source "ChessBase"]
[SourceQuality "1"]
[TimeControl "40/5400+30:1800+30"]

1. e4 {[%emt 0:05:32]} c5 {[%emt 0:00:10]} 2. Nf3 {[%emt 0:00:07]} Nc6 {[%emt 0:00:06]} 3. d4 {[%emt 0:00:03]} cxd4 {[%emt 0:00:03]} 4. Nxd4 {[%emt 0:00:05]} Nf6 {[%emt 0:00:12]} 5. f3 {[%emt 0:00:15]} e5 {[%emt 0:09:53]} 6. Nb5 {[%emt 0:00:16]} d6 {[%emt 0:11:02]} 7. c4 {[%emt 0:00:07]} Nh5 {[%emt 0:02:21]} 8. Be3 {[%emt 0:11:09]} f5 {[%emt 0:02:50]} 9. exf5 {[%emt 0:04:33]} Bxf5 {[%emt 0:02:21]} 10. N1c3 {[%emt 0:05:55]} a6 {[%emt 0:05:09]} 11. g4 {[%emt 0:06:34]} Be6 {[%emt 0:06:40]} 12. gxh5 {[%emt 0:05:23]} axb5 {[%emt 0:00:30]} 13. Nxb5 {[%emt 0:05:28]} Be7 {[%emt 0:05:49]} 14. Qd2 {[%emt 0:24:23]} Bh4+ {[%emt 0:13:14]} 15. Kd1 {[%emt 0:02:07]} d5 {[%emt 0:01:55]} 16. cxd5 {[%emt 0:03:43]} Bxd5 {[%emt 0:00:25]} 17. Be2 {[%emt 0:10:07]} O-O {[%emt 0:05:17]} 18. Nc3 {[%emt 0:06:35]} Bxf3 {[%emt 0:05:01]} 19. Bxf3 {[%emt 0:01:16]} Qxd2+ {[%emt 0:01:44]} 20. Kxd2 {[%emt 0:01:41]} Rxf3 {[%emt 0:00:14]} 21. Ke2 {[%emt 0:00:22]} Rf5 {[%emt 0:05:21]} 22. h6 {[%emt 0:00:59]} Nd4+ {[%emt 0:01:02]} 23. Kd3 {[%emt 0:02:50]} g6 {[%emt 0:03:06]} 24. Raf1 {[%emt 0:01:17]} Nf3 {[%emt 0:04:51]} 25. Kc2 {[%emt 0:01:09]} Raf8 {[%emt 0:01:26]} 26. Rd1 {[%emt 0:00:15]} Nd4+ {[%emt 0:02:04]} 27. Bxd4 {[%emt 0:00:55]} exd4 {[%emt 0:00:06]} 28. Rxd4 {[%emt 0:00:14]} Bg5 {[%emt 0:00:35]} 29. Rd7 {[%emt 0:00:24]} R8f7 {[%emt 0:01:08]} 30. Rhd1 {[%emt 0:01:01]} Bxh6 {[%emt 0:00:28]} 31. a4 {[%emt 0:00:28]} Bf4 {[%emt 0:02:45]} 32. h3 {[%emt 0:00:25]} h5 {[%emt 0:01:09]} 33. R1d3 {[%emt 0:00:31]} g5 {[%emt 0:00:25]} 34. b4 {[%emt 0:00:36]} g4 {[%emt 0:03:03]} 35. hxg4 {[%emt 0:00:04]} hxg4 {[%emt 0:00:05]} 36. Ne2 {[%emt 0:00:59]} Bh2 {[%emt 0:01:46]} 37. Rxf7 {[%emt 0:00:36]} Rxf7 {[%emt 0:00:12]} 38. Ng3 {[%emt 0:00:29]} Rf4 {[%emt 0:03:30]} 39. Kc3 {[%emt 0:00:19]} Kf7 {[%emt 0:00:37]} 40. a5 {[%emt 0:00:14]} Ke6 {[%emt 0:00:44]} 41. b5 {[%emt 0:01:34]} Ra4 {[%emt 0:02:59]} 42. a6 {[%emt 0:09:47]} bxa6 {[%emt 0:00:49]} 43. bxa6 {[%emt 0:01:09]} Rxa6 {[%emt 0:01:19]} 44. Ne2 {[%emt 0:05:35]} Kf5 {[%emt 0:09:31]} 45. Kd4 {[%emt 0:00:56]} Re6 {[%emt 0:01:50]} 46. Re3 {[%emt 0:04:11]} Rd6+ {[%emt 0:00:58]} 47. Kc3 {[%emt 0:01:36]} Bf4 {[%emt 0:02:36]} 48. Re8 {[%emt 0:00:36]} Be5+ {[%emt 0:01:14]} 49. Kc2 {[%emt 0:01:12]} Rg6 {[%emt 0:01:20]} 50. Kd3 {[%emt 0:00:18]} Bd6 {[%emt 0:01:18]} 51. Ke3 {[%emt 0:03:29]} Bc5+ {[%emt 0:00:19]} 52. Kd2 {[%emt 0:00:30]} g3 {[%emt 0:00:56]} 53. Nxg3+ {[%emt 0:00:00]} Rxg3 {[%emt 0:00:06]} 54. Ra8 {[%emt 0:00:35]} Ke4 {[%emt 0:01:39]} 55. Re8+ {[%emt 0:00:19]} Kd5 {[%emt 0:00:59]} 56. Rd8+ {[%emt 0:00:10]} Bd6 {[%emt 0:00:15]} 57. Ke2 {[%emt 0:00:17]} Kc5 {[%emt 0:00:36]} 58. Rc8+ {[%emt 0:00:11]} Kd4 {[%emt 0:00:36]} 59. Ra8 {[%emt 0:00:15]} Be5 {[%emt 0:00:27]} 60. Ra4+ {[%emt 0:00:06]} Kd5 {[%emt 0:00:12]} 61. Ra5+ {[%emt 0:00:10]} Ke4 {[%emt 0:00:09]} 62. Kf2 {[%emt 0:01:22]} Rb3 {[%emt 0:00:25]} 63. Ra2 {[%emt 0:00:10]} Bd4+ {[%emt 0:00:48]} 64. Kg2 {[%emt 0:01:12]} Rf3 {[%emt 0:00:35]} 65. Ra8 {[%emt 0:00:24]} Rf2+ {[%emt 0:01:42]} 66. Kg3 {[%emt 0:00:13]} Rf1 {[%emt 0:00:30]} 67. Re8+ {[%emt 0:00:23]} Be5+ {[%emt 0:00:09]} 68. Kg2 {[%emt 0:00:03]} Ra1 {[%emt 0:00:17]} 69. Kf2 {[%emt 0:01:39]} Ra2+ {[%emt 0:00:08]} 70. Ke1 {[%emt 0:00:20]} Kd4 {[%emt 0:00:37]} 71. Kf1 {[%emt 0:00:25]} Bf4 {[%emt 0:00:18]} 72. Ke1 {[%emt 0:00:42]} Kd3 {[%emt 0:00:57]} 73. Kf1 {[%emt 0:00:13]} Be3 {[%emt 0:00:43]} 74. Rd8+ {[%emt 0:00:22]} Ke4 {[%emt 0:00:36]} 75. Rf8 {[%emt 0:00:19]} Bf4 {[%emt 0:00:44]} 76. Ke1 {[%emt 0:00:47]} Kf3 {[%emt 0:00:11]} 77. Kd1 {[%emt 0:00:08]} Rd2+ {[%emt 0:00:33]} 78. Ke1 {[%emt 0:00:13]} Ke3 {[%emt 0:00:22]} 79. Re8+ {[%emt 0:01:05]} Kf3 {[%emt 0:00:29]} 80. Rf8 {[%emt 0:01:21]} Rc2 {[%emt 0:00:10]} 81. Kd1 {[%emt 0:00:18]} 0-1